[Event "37th ECCC 2022"]
[Site "Mayrhofen"]
[Date "2022.10.05"]
[Round "3.51"]
[White "Trost, Edvin"]
[Black "Citak, Selim"]
[Result "1/2-1/2"]
[ECO "E06"]
[WhiteElo "2347"]
[BlackElo "2216"]
[Annotator "TA"]
[PlyCount "115"]
[EventDate "2022.10.03"]
[EventType "team-tourn"]
[EventCountry "AUT"]
[SourceTitle "playchess.com"]
[Source "ChessBase"]
[SourceQuality "1"]
[TimeControl "40/5400+30:1800+30"]

{[%evp 23,115,10,13,10,16,0,0,0,0,0,0,-8,0,0,-6,-47,-43,-48,-29,-65,-65,-65,-65,-66,-13,-16,-12,-8,0,0,0,0,0,0,0,0,0,0,0,-23,-22,-16,0,0,0,0,0,0,0,0,0,0,0,0,0,0,0,0,0,0,0,0,0,0,0,0,0,0,0,0,0,0,0,0,0,0,0,0,0,0,0,0,0,0,0,0,0,0,0,0,0,0,0,0]} 1. d4 {[%emt 0:00:04]} Nf6 {[%emt 0:00:29]} 2. c4 {[%emt 0:00:35]} e6 {[%emt 0:00:10]} 3. Nf3 {[%emt 0:01:09]} d5 {[%emt 0:00:15]} 4. g3 {[%emt 0:00:14]} Be7 {[%emt 0:00:12]} 5. Bg2 {[%emt 0:00:14]} O-O {[%emt 0:00:07]} 6. O-O {[%emt 0:00:15]} dxc4 {[%emt 0:00:17]} 7. Qc2 {[%emt 0:00:37]} a6 {[%emt 0:00:11]} 8. a4 {[%emt 0:00:36]} Bd7 {[%emt 0:00:18]} 9. Rd1 {[%emt 0:01:11]} Bc6 {[%emt 0:00:27]} 10. Nc3 {[%emt 0:00:25]} Bxf3 {[%emt 0:00:20]} 11. Bxf3 {[%emt 0:01:27]} Nc6 {[%emt 0:00:07]} 12. Bxc6 {[%emt 0:00:27]} bxc6 {[%emt 0:00:08]} 13. Bg5 {[%emt 0:00:05] E05: Open Catalan: 5 Nf3 Be7.} Rb8 {[%emt 0:00:24]} 14. Bxf6 {[%emt 0:01:23]} Bxf6 {[%emt 0:00:52]} 15. Rab1 {[%emt 0:00:39]} a5 {[%emt 0:17:05]} ({Don't play} 15... Bxd4 16. e3 c5 17. Ne2 $16) 16. e3 {[%emt 0:05:55] [#]} Rb3 $146 {[%emt 0:17:37]} ({Predecessor:} 16... Qe7 17. Ne4 Rb4 18. Nd2 c5 19. Nxc4 Qe8 20. Nxa5 Rxa4 21. b4 cxd4 22. Nc6 Qa8 23. Nxd4 Bxd4 24. Rxd4 {1-0 (44) Saric,A (2510)-Savic,M (2406) Neum 2022}) 17. Ne4 {[%emt 0:15:01]} Qd5 {[%emt 0:00:25]} 18. Rdc1 {[%emt 0:01:33]} Rb4 {[%emt 0:03:15]} 19. Nc3 {[%emt 0:06:53]} (19. Nd2 $5 {[%cal Rd2c4]}) 19... Qf5 {[%emt 0:00:43]} 20. Ne4 {[%emt 0:21:26]} Rd8 {[%emt 0:28:44]} 21. Nd2 {[%emt 0:12:47]} c5 {[%emt 0:02:16]} 22. Qxf5 {[%emt 0:17:37]} exf5 {[%emt 0:00:02]} 23. Nxc4 {[%emt 0:00:05]} cxd4 {[%emt 0:01:14]} (23... Rxa4 $15 24. dxc5 (24. b3 Ra2 $11) 24... Rd5) 24. Nxa5 $11 {[%emt 0:00:38]} Rxa4 {[%emt 0:07:55]} 25. Nc6 {[%emt 0:00:04]} Rd6 {[%emt 0:10:41] White must now prevent ...dxe3.} 26. Nxd4 {[%emt 0:00:13]} Bxd4 {[%emt 0:00:27]} 27. exd4 {[%emt 0:00:00][%mdl 4096] Endgame KRR-KRR} Rd7 {[%emt 0:02:57]} 28. b4 {[%emt 0:00:41]} h5 {[%emt 0:01:11]} 29. Rc4 {[%emt 0:00:24]} (29. d5 $5) 29... Ra2 {[%emt 0:00:35]} 30. b5 {[%emt 0:01:56]} Re7 {[%emt 0:01:05]} 31. d5 {[%emt 0:01:24][%cal Od5d6] [#] Threatens to win with d6!} Rd2 {[%emt 0:00:36]} 32. Rc5 {[%emt 0:01:09] The position is equal.} Rd7 {[%emt 0:00:48]} 33. d6 {[%emt 0:01:52]} R2xd6 {[%emt 0:00:24]} 34. Rxf5 {[%emt 0:00:08]} Rd5 {[%emt 0:01:04]} 35. Rxd5 {[%emt 0:00:11]} Rxd5 {[%emt 0:00:04] KR-KR} 36. b6 {[%emt 0:00:13]} cxb6 {[%emt 0:00:03]} 37. Rxb6 {[%emt 0:00:05]} g6 {[%emt 0:00:05]} 38. Kg2 {[%emt 0:00:04]} Kg7 {[%emt 0:00:04]} 39. Kf3 {[%emt 0:00:07]} Ra5 {[%emt 0:00:18]} 40. h3 {[%emt 0:00:13]} Ra3+ {[%emt 0:00:03]} 41. Kg2 {[%emt 0:30:15]} Ra4 {[%emt 0:30:07]} 42. Rb3 {[%emt 0:00:07]} Ra2 {[%emt 0:00:05]} 43. g4 {[%emt 0:00:07]} hxg4 {[%emt 0:00:03]} 44. hxg4 {[%emt 0:00:03]} g5 {[%emt 0:00:15]} 45. Kg3 {[%emt 0:00:11]} Kg6 {[%emt 0:00:05]} 46. f3 {[%emt 0:00:06]} f6 {[%emt 0:00:03]} 47. f4 {[%emt 0:00:06]} gxf4+ {[%emt 0:00:04]} 48. Kxf4 {[%emt 0:00:04]} Ra4+ {[%emt 0:00:05]} 49. Kg3 {[%emt 0:00:04]} Ra1 {[%emt 0:00:14]} 50. Rf3 {[%emt 0:00:08]} Ra4 {[%emt 0:00:07]} 51. Rf4 {[%emt 0:00:11]} Rxf4 {[%emt 0:00:22]} 52. Kxf4 {[%emt 0:00:05] KP-KP} Kg7 {[%emt 0:00:07]} 53. Kf5 {[%emt 0:00:04]} Kf7 {[%emt 0:00:04]} 54. Ke4 {[%emt 0:00:29]} Kg6 {[%emt 0:00:09]} 55. Kf4 {[%emt 0:00:02]} Kg7 {[%emt 0:00:05]} 56. Kf5 {[%emt 0:00:02]} Kf7 {[%emt 0:00:03]} 57. g5 {[%emt 0:00:03]} fxg5 {[%emt 0:00:03]} 58. Kxg5 {[%emt 0:00:07] Weighted Error Value: White=0.04 (flawless) /Black=0.03 (flawless)} 1/2-1/2

[Event "37th ECCC 2022"]
[Site "Mayrhofen"]
[Date "2022.10.05"]
[Round "3.52"]
[White "Erten, Kerem"]
[Black "Kenneskog, Theodor"]
[Result "1/2-1/2"]
[ECO "B51"]
[WhiteElo "2040"]
[BlackElo "2320"]
[Annotator "TA"]
[PlyCount "74"]
[EventDate "2022.10.03"]
[EventType "team-tourn"]
[EventCountry "AUT"]
[SourceTitle "playchess.com"]
[Source "ChessBase"]
[SourceQuality "1"]
[TimeControl "40/5400+30:1800+30"]

{[%evp 9,74,23,33,33,19,8,23,7,26,-32,-15,-31,-31,-27,-43,-64,-57,-55,-11,0,0,0,0,0,0,0,0,0,0,-54,-57,-137,-6,-37,0,0,-13,-31,-33,-42,-24,-52,-47,-71,-20,-64,-31,-75,-42,-66,-43,-43,-43,-43,-46,-46,-10,-10,-10,-10,-10,-10,-8,-8,-8,-12,0]} 1. e4 {[%emt 0:00:05]} c5 {[%emt 0:00:04]} 2. Nf3 {[%emt 0:00:09]} d6 {[%emt 0:00:04]} 3. Bb5+ {[%emt 0:00:11]} Nd7 {[%emt 0:00:05]} 4. O-O {[%emt 0:00:06]} a6 {[%emt 0:00:10]} 5. Bd3 {[%emt 0:00:05]} Ngf6 {[%emt 0:00:09]} 6. Re1 {[%emt 0:00:05] B51: Sicilian: Moscow Variation (3 Bb5+) without 3...Bd7.} e6 $1 {[%emt 0:00:19] 6...e6 is better than 6...b5.} 7. c3 {[%emt 0:01:26]} b5 {[%emt 0:00:19]} 8. Bc2 {[%emt 0:01:09] White has an edge.} c4 {[%emt 0:00:18]} 9. b3 {[%emt 0:03:58]} (9. a4 $11) 9... Bb7 $15 {[%emt 0:00:43]} 10. Na3 {[%emt 0:02:17]} Rc8 {[%emt 0:04:15]} 11. bxc4 {[%emt 0:04:51]} bxc4 {[%emt 0:00:06]} 12. Rb1 {[%emt 0:01:19]} Ba8 {[%emt 0:01:26]} 13. Qe2 {[%emt 0:01:59]} Qc7 {[%emt 0:01:16]} 14. d3 {[%emt 0:09:34]} cxd3 {[%emt 0:12:02]} 15. Bxd3 {[%emt 0:00:07]} Nc5 {[%emt 0:00:12]} 16. Bxa6 {[%emt 0:08:36]} Nxa6 {[%emt 0:08:29]} 17. Qxa6 {[%emt 0:00:10] [#] Strongly threatening Nb5.} Bxe4 {[%emt 0:02:32]} 18. Nb5 {[%emt 0:13:36]} Qd7 {[%emt 0:19:23] [#]} 19. Rb2 $146 {[%emt 0:04:42]} (19. Ba3 $11 Ra8 20. Qb6) ({Predecessor:} 19. Rb4 d5 20. Ne5 Qd8 21. Qb7 Be7 22. Nd6+ Qxd6 23. Qxc8+ Bd8 24. Ba3 O-O 25. Ra4 Qxe5 26. Bxf8 {1-0 (38) Melia,S (2370)-Nastore,P (2234) Chess.com INT 2020}) 19... Be7 {[%emt 0:07:13]} 20. Rd1 {[%emt 0:13:02]} ({White should try} 20. Na7 $1 $15 Ra8 21. Be3) 20... Bxf3 {[%emt 0:24:46]} (20... O-O $17 {Threatens to win with ...Ra8.} 21. Ne5 Qd8) 21. Rxd6 {[%emt 0:10:50]} ({But not} 21. gxf3 O-O 22. Qa4 Nd5 $17) 21... Ra8 {[%emt 0:07:44]} 22. Rxd7 {[%emt 0:03:55]} Rxa6 {[%emt 0:00:02]} 23. Rd3 {[%emt 0:01:24] [#] Nc7+ is the strong threat.} O-O $1 {[%emt 0:02:04]} 24. gxf3 {[%emt 0:00:39]} Rc8 {[%emt 0:01:01]} 25. Be3 {[%emt 0:01:37]} Nd5 {[%emt 0:02:02][%mdl 1024] Black has compensation.} 26. Bd4 {[%emt 0:03:38]} Bg5 {[%emt 0:02:07]} (26... h5 $17) 27. Rd1 {[%emt 0:03:11]} h5 {[%emt 0:00:31]} 28. Ra1 {[%emt 0:00:48]} f6 {[%emt 0:00:53]} 29. Re2 {[%emt 0:01:48]} e5 {[%emt 0:00:44]} 30. Be3 {[%emt 0:00:23]} Bxe3 {[%emt 0:00:27]} (30... Nxc3 $2 31. Rc2 $18 (31. Nxc3 Rxc3 32. Bxg5 fxg5 $14)) 31. fxe3 {[%emt 0:00:01]} Rc5 {[%emt 0:00:23]} (31... Nxc3 $2 32. Rc2 $18) 32. a4 {[%emt 0:01:17]} Rxb5 {[%emt 0:02:04]} (32... Ra5 $5 {[%cal Rc5b5]}) 33. c4 {[%emt 0:00:08] The position is equal.} Rba5 {[%emt 0:00:28]} 34. cxd5 {[%emt 0:00:07]} Rxd5 {[%emt 0:01:01]} 35. Rc2 {[%emt 0:00:51]} Rd3 {[%emt 0:01:35]} 36. Kf2 {[%emt 0:00:24]} Rb3 {[%emt 0:00:10]} 37. Ke2 {[%emt 0:02:17]} Ra7 {[%emt 0:00:42] Weighted Error Value: White=0.18 (very precise) /Black=0.19 (very precise)} 1/2-1/2

[Event "37th ECCC 2022"]
[Site "Mayrhofen"]
[Date "2022.10.05"]
[Round "3.53"]
[White "Hedman, Erik"]
[Black "Kazdagli, Benan"]
[Result "1-0"]
[ECO "A05"]
[WhiteElo "2322"]
[BlackElo "2005"]
[Annotator "TA"]
[PlyCount "83"]
[EventDate "2022.10.03"]
[EventType "team-tourn"]
[EventCountry "AUT"]
[SourceTitle "playchess.com"]
[Source "ChessBase"]
[SourceQuality "1"]
[TimeControl "40/5400+30:1800+30"]

{[%evp 15,83,0,22,0,35,13,26,22,48,50,58,49,50,45,87,65,93,100,94,85,106,110,92,101,102,100,131,131,128,114,140,46,46,25,24,8,179,185,192,189,193,165,535,537,526,515,454,189,405,201,185,133,160,133,384,381,464,459,500,501,555,551,700,716,699,667,1041,1041,982,953]} 1. Nf3 {[%emt 0:00:13]} Nf6 {[%emt 0:00:23]} 2. g3 {[%emt 0:00:10]} g6 {[%emt 0:01:54]} 3. b3 {[%emt 0:00:27]} Bg7 {[%emt 0:02:04]} 4. Bb2 {[%emt 0:00:06]} O-O {[%emt 0:01:10]} 5. Bg2 {[%emt 0:00:03]} c5 {[%emt 0:01:46]} 6. c4 {[%emt 0:01:24]} Nc6 {[%emt 0:00:40]} 7. O-O {[%emt 0:00:46]} d6 {[%emt 0:01:51]} 8. Nc3 {[%emt 0:05:41]} Bg4 {[%emt 0:03:20]} 9. h3 {[%emt 0:00:23] A38: Symmetrical English vs ...g6: 4 Bg2 Bg7 5 Nf3 Nf6.} Bf5 {[%emt 0:01:18]} (9... Bxf3 $5 10. Bxf3 e6 $11) 10. d3 {[%emt 0:04:48] [#]} Bd7 $146 {[%emt 0:15:20]} ({Predecessor:} 10... a6 11. Ne1 Rb8 12. Nc2 Nd4 13. Ne3 Bd7 14. Rb1 b5 15. Ned5 Nxd5 16. Nxd5 bxc4 17. dxc4 {1-0 (67) Tadic,B (2461)-Anand,B (2312) Belgrade 2022}) 11. e3 {[%emt 0:11:02][%cal Be2e3,Be3d4,Bd4d5][%mdl 32] White has an edge.} Re8 {[%emt 0:20:37]} 12. Qd2 {[%emt 0:05:52]} Qa5 {[%emt 0:01:58]} 13. d4 {[%emt 0:20:00]} cxd4 {[%emt 0:10:09]} 14. exd4 {[%emt 0:01:13]} Rac8 {[%emt 0:14:12]} 15. d5 {[%emt 0:06:11]} Nd8 {[%emt 0:03:29][%cal Of6e4]} 16. Rad1 {[%emt 0:01:35]} a6 {[%emt 0:00:50]} 17. Nd4 {[%emt 0:00:23][%cal Bf3d4,Bd4c2,Bc2e3,Be3g4][%mdl 32]} e5 {[%emt 0:02:18]} 18. dxe6 $1 {[%emt 0:05:44]} fxe6 {[%emt 0:04:13]} 19. Nc2 {[%emt 0:11:51]} Bc6 {[%emt 0:07:25]} 20. Qxd6 {[%emt 0:04:39]} Bxg2 {[%emt 0:02:00]} 21. Kxg2 {[%emt 0:00:15]} Nc6 {[%emt 0:00:13]} 22. b4 {[%emt 0:11:33]} Qh5 {[%emt 0:00:24] [#]} 23. c5 {[%emt 0:02:58]} ({White should try} 23. Rfe1 $1 $16) 23... Ne5 $14 {[%emt 0:00:31]} 24. Ne3 {[%emt 0:01:19] Prevents Nc4. Black must now prevent g4.} Qf3+ {[%emt 0:01:18]} 25. Kh2 {[%emt 0:01:02]} Ne4 $2 {[%emt 0:00:12]} (25... Nc6 $11) 26. Nxe4 $18 {[%emt 0:01:01]} Qxe4 {[%emt 0:00:02]} 27. Bxe5 {[%emt 0:00:53]} Bxe5 {[%emt 0:00:03]} 28. Qd2 {[%emt 0:01:05]} Bc7 $2 {[%emt 0:01:27]} (28... Rf8 {is tougher.} 29. Rfe1 Bg7) 29. Ng4 {[%emt 0:00:24] And now Nf6+ would win.} Rf8 {[%emt 0:02:23] Against Nf6+} 30. Qc3 {[%emt 0:00:50][%cal Rg4h6]} e5 {[%emt 0:00:17]} 31. Rde1 {[%emt 0:01:03]} (31. Rd7 $142) 31... Qd4 $2 {[%emt 0:01:11]} (31... Qd5 {was worth a try.} 32. f4 (32. Nxe5 Bxe5 33. Rxe5 Qxa2 $16) 32... Rcd8 33. fxe5 Qd3 34. Qxd3 Rxd3) 32. Qxd4 {[%emt 0:00:49]} (32. Qb3+ $142 Kh8 33. Rd1) 32... exd4 {[%emt 0:00:01]} 33. f4 {[%emt 0:00:19]} (33. Re7 $18) 33... Kf7 {[%emt 0:01:12]} 34. Kg2 $36 {[%emt 0:00:40][%mdl 2048] White has strong initiative. White is more active.} b6 $2 {[%emt 0:00:35][%mdl 8192] This move loses the game for Black.} (34... Rfd8 $16 35. Nf2 b6) 35. cxb6 {[%emt 0:00:19]} Bxb6 {[%emt 0:00:02]} 36. Ne5+ {[%emt 0:00:06] White is clearly winning.} Kg7 {[%emt 0:00:17] [#]} 37. Nd7 $1 {[%emt 0:00:12][%csl LRb6,LRf8]} Rc2+ {[%emt 0:00:37]} 38. Rf2 {[%emt 0:00:32]} Rc6 {[%emt 0:01:16]} 39. Re7+ {[%emt 0:00:43]} Kg8 {[%emt 0:00:09]} 40. Nxf8 {[%emt 0:00:28]} d3 {[%emt 0:00:03]} 41. Re6 {[%emt 0:02:39]} Bxf2 {[%emt 0:15:13]} 42. Rxc6 {[%emt 0:00:25] Weighted Error Value: White=0.34/Black=0.60} 1-0

[Event "37th ECCC 2022"]
[Site "Mayrhofen"]
[Date "2022.10.05"]
[Round "3.54"]
[White "Bektas, Cagan Erdem"]
[Black "Bator, Robert"]
[Result "0-1"]
[ECO "D31"]
[WhiteElo "1715"]
[BlackElo "2353"]
[Annotator "TA"]
[PlyCount "116"]
[EventDate "2022.10.03"]
[EventType "team-tourn"]
[EventCountry "AUT"]
[SourceTitle "playchess.com"]
[Source "ChessBase"]
[SourceQuality "1"]
[TimeControl "40/5400+30:1800+30"]

{[%evp 9,116,18,31,19,33,16,41,38,45,52,49,43,47,33,27,15,15,15,13,18,16,0,0,0,0,-12,-8,-70,0,0,0,-23,0,0,0,0,0,0,0,-14,-5,-6,-6,-6,0,-19,0,-23,0,0,0,0,0,-34,-39,-39,-33,-92,0,-31,0,0,0,0,0,0,0,0,0,0,78,-30,0,0,0,0,0,-9,-8,-22,-10,-81,-26,-18,-8,-7,-5,-39,13,13,19,-15,0,0,0,0,0,-17,-18,-19,-29,-29,-25,-4922,-4533,-5895,-5895,-5030,-4714]} 1. d4 {[%emt 0:00:03]} d5 {[%emt 0:02:06]} 2. c4 {[%emt 0:00:09]} e6 {[%emt 0:00:41]} 3. Nc3 {[%emt 0:00:06]} a6 {[%emt 0:00:23]} 4. cxd5 {[%emt 0:01:46]} exd5 {[%emt 0:00:09]} 5. Nf3 {[%emt 0:01:10]} Nf6 {[%emt 0:03:31]} 6. Bg5 {[%emt 0:00:40] D37: Queen's Gambit Declined: 5 Bf4.} Be7 {[%emt 0:00:50]} 7. e3 {[%emt 0:00:48]} c6 {[%emt 0:02:28]} 8. Bd3 {[%emt 0:01:03] [#] White is slightly better. The main line 8.Bd3 scores better than 8.Qc2.} Nh5 $146 {[%emt 0:08:17]} ({Predecessor:} 8... h6 9. Bh4 Nbd7 10. Qc2 O-O 11. O-O Re8 12. Rae1 Ne4 13. Bxe4 Bxh4 14. Bh7+ Kf8 15. e4 dxe4 16. Nxh4 Qxh4 17. Nxe4 g6 18. Nd6 Re7 19. d5 c5 20. Nxf7 Rxf7 21. Bxg6 {1-0 (28) Navara,D (2682)-Kraus,T (2472) Usti nad Labem 2022}) 9. Bxe7 {[%emt 0:16:48]} Qxe7 {[%emt 0:00:08]} 10. O-O {[%emt 0:00:22]} O-O {[%emt 0:02:57]} 11. Ne5 {[%emt 0:06:35]} g6 {[%emt 0:01:32]} 12. Be2 {[%emt 0:25:48]} Ng7 {[%emt 0:03:00]} 13. Na4 {[%emt 0:05:27]} Nd7 {[%emt 0:10:37]} 14. Nxd7 {[%emt 0:02:13]} Bxd7 {[%emt 0:01:08]} 15. Nb6 {[%emt 0:02:18]} Rae8 {[%emt 0:01:03]} 16. Nxd7 {[%emt 0:00:08]} Qxd7 {[%emt 0:00:05]} 17. b4 {[%emt 0:00:47]} f5 {[%emt 0:00:56]} 18. a4 {[%emt 0:00:35]} (18. g3 $11) 18... f4 {[%emt 0:01:00]} (18... Qe7 $1 $15) 19. exf4 $11 {[%emt 0:13:46]} Qe7 {[%emt 0:06:52]} 20. Bf3 {[%emt 0:05:21]} Qxb4 {[%emt 0:01:40]} (20... Rxf4 $5 {[%cal Rg7f5]} 21. g3 Rf7 $15) 21. Rb1 {[%emt 0:01:05]} Qe7 {[%emt 0:00:37]} 22. g3 {[%emt 0:00:30]} Rf7 {[%emt 0:01:16]} 23. Qd3 {[%emt 0:03:14]} Qf6 {[%emt 0:05:52]} 24. Rb3 {[%emt 0:06:30]} Nf5 {[%emt 0:04:59][%cal Bg7f5,Bf5d6,Bd6c4][%mdl 32]} 25. Rd1 {[%emt 0:00:13]} Nd6 {[%emt 0:04:34]} 26. Kg2 {[%emt 0:01:38]} Rfe7 {[%emt 0:05:41]} 27. Rbb1 {[%emt 0:00:40]} Nc4 {[%emt 0:05:20]} 28. Qc3 {[%emt 0:01:05]} Qd6 {[%emt 0:00:59]} 29. Ra1 {[%emt 0:00:52]} Kg7 {[%emt 0:03:17]} 30. h4 {[%emt 0:00:13][%cal Bh2h4,Bh4h5][%mdl 32]} Qf6 {[%emt 0:08:39]} 31. h5 {[%emt 0:01:27]} g5 {[%emt 0:00:19]} 32. fxg5 {[%emt 0:01:43]} Qxg5 {[%emt 0:00:06]} 33. Rh1 {[%emt 0:00:41]} ({Better is} 33. Re1 $15) 33... Kh6 {[%emt 0:03:22]} (33... Rf7 $17 {Hoping for ...Ref8.} 34. h6+ Kh8) 34. Rad1 {[%emt 0:00:41]} Rg7 {[%emt 0:01:26][%cal Oc4e3] [#] And now ...Ne3+! would win.} 35. Rd3 {[%emt 0:00:08] Inhibits Ne3+.} Nd6 {[%emt 0:00:32]} 36. Re1 {[%emt 0:01:09]} Rxe1 {[%emt 0:00:54]} 37. Qxe1 {[%emt 0:00:04] aiming for Qe6+.} Re7 {[%emt 0:00:10] Against Qe6+} 38. Qb4 {[%emt 0:00:42]} Nf5 {[%emt 0:00:23]} 39. Kf1 {[%emt 0:00:29]} Qc1+ {[%emt 0:02:30] [#]} (39... Rf7 $11 {keeps the balance.}) 40. Kg2 {[%emt 0:00:20]} (40. Bd1 $1 $16) 40... Qg5 {[%emt 0:05:03]} 41. Kf1 {[%emt 0:30:30]} Qf6 {[%emt 0:31:51][%cal Of5e3] Threatens to win with ...Ne3+!} 42. Qd2+ {[%emt 0:00:49]} Kg7 {[%emt 0:02:23] Active counter play!} 43. Qf4 {[%emt 0:00:04]} Nd6 {[%emt 0:01:00] ...Qxf4 is the strong threat.} ({Don't do} 43... Qe6 44. Qg5+ Kh8 45. Bg4 $18) 44. Qg4+ {[%emt 0:01:11]} Kh6 {[%emt 0:00:19]} 45. Qg8 {[%emt 0:00:33]} (45. Kg2 $1 $11 {remains equal.}) 45... Re8 {[%emt 0:00:00]} (45... Rf7 $17 {Strongly threatening ...Ne4.} 46. Qb8 Ne4) 46. Qg4 {[%emt 0:00:00]} Qf5 {[%emt 0:00:00] Dancing on a razor blade.} 47. Qxf5 {[%emt 0:00:00]} Nxf5 {[%emt 0:00:00][%mdl 4096] Endgame KRB-KRN} 48. Kg2 {[%emt 0:00:00]} (48. Bg4 $5 {[%cal Rg4f5]} Nd6 49. f4 $11) 48... b5 {[%emt 0:00:00]} (48... Kg7 $15) 49. axb5 {[%emt 0:00:00]} axb5 {[%emt 0:00:00][%cal Ba6b5,Bb5b4,Bb4b3,Bb3b2][%mdl 32]} 50. Kh3 {[%emt 0:00:00]} b4 {[%emt 0:00:00]} 51. Bg4 {[%emt 0:00:00]} Nd6 {[%emt 0:00:00]} 52. Bd7 {[%emt 0:00:00]} Rb8 {[%emt 0:00:00]} 53. Bxc6 {[%emt 0:00:00]} b3 {[%emt 0:00:00]} 54. Bxd5 {[%emt 0:00:00]} b2 {[%emt 0:00:00]} 55. Ba2 {[%emt 0:00:00]} Ra8 {[%emt 0:00:00]} 56. Rb3 $2 {[%emt 0:02:47][%mdl 8192]} Rxa2 $19 {[%emt 0:00:00] Black is clearly winning.} 57. Kg4 Nc4 {[%emt 0:00:00]} 58. Rb7 {[%emt 0:01:46]} Ra6 {[%emt 0:00:00] Weighted Error Value: White=0.30/Black=0.14 (very precise)} 0-1

[Event "37th ECCC 2022"]
[Site "Mayrhofen"]
[Date "2022.10.05"]
[Round "3.55"]
[White "Heberla, Bartlomiej"]
[Black "Aroshidze, Levan"]
[Result "1/2-1/2"]
[ECO "B41"]
[WhiteElo "2562"]
[BlackElo "2519"]
[Annotator "TA"]
[PlyCount "62"]
[EventDate "2022.10.03"]
[EventType "team-tourn"]
[EventCountry "AUT"]
[SourceTitle "playchess.com"]
[Source "ChessBase"]
[SourceQuality "1"]
[TimeControl "40/5400+30:1800+30"]

{[%evp 14,62,42,27,26,18,20,17,15,12,25,19,35,25,22,31,19,21,21,21,28,19,27,-35,-38,-54,-43,-54,-58,-56,-47,-41,-47,-47,-47,-64,-5,-5,0,0,0,0,0,0,0,0,0,0,0,-5,0]} 1. e4 {[%emt 0:00:01]} c5 {[%emt 0:00:06]} 2. Nf3 {[%emt 0:00:03]} e6 {[%emt 0:00:07]} 3. d4 {[%emt 0:00:03]} cxd4 {[%emt 0:00:06]} 4. Nxd4 {[%emt 0:00:03]} a6 {[%emt 0:00:11]} 5. c4 {[%emt 0:00:05]} Nf6 {[%emt 0:00:08]} 6. Nc3 {[%emt 0:00:05]} Qc7 {[%emt 0:00:34]} 7. Be2 {[%emt 0:00:13]} Bb4 {[%emt 0:00:56]} 8. O-O {[%emt 0:00:14]} O-O {[%emt 0:01:10] B41: Sicilian: Kan Variation: 5 c4.} 9. Bg5 {[%emt 0:00:05]} Bxc3 {[%emt 0:00:25]} 10. Bxf6 {[%emt 0:00:02]} Bb4 {[%emt 0:00:08]} 11. Bg5 {[%emt 0:00:03] [#]} b6 $146 {[%emt 0:02:08]} ({Predecessor:} 11... Nc6 12. Be3 Bd6 13. g3 Rd8 14. Nxc6 dxc6 15. Qc2 c5 16. f4 b6 17. e5 Bf8 {½-½ (28) Kollars,D (2534)-Gordievsky,D (2630) Karlsruhe 2018}) 12. Qd3 {[%emt 0:09:49]} Bb7 {[%emt 0:15:38]} 13. Rfd1 {[%emt 0:10:55]} h6 {[%emt 0:22:10]} 14. Be3 {[%emt 0:16:43]} Nc6 {[%emt 0:07:57][%cal Bb8c6,Bc6d4,Bd4e2][%mdl 32]} 15. Nb3 {[%emt 0:08:53]} d6 {[%emt 0:10:54]} 16. a3 {[%emt 0:01:20]} Bc5 {[%emt 0:00:04]} 17. Nxc5 {[%emt 0:00:20]} dxc5 {[%emt 0:00:05]} 18. Qd7 {[%emt 0:02:37]} ({White should play} 18. Qd6 $11 Qxd6 19. Rxd6) 18... Qb8 $1 $15 {[%emt 0:01:36] [#] Hoping for ...Rd8.} 19. Qd6 {[%emt 0:30:34]} Nd4 $1 {[%emt 0:10:21]} 20. Qxb8 {[%emt 0:05:56]} Nxe2+ {[%emt 0:00:19]} 21. Kf1 {[%emt 0:00:02]} Rfxb8 {[%emt 0:03:45]} 22. Kxe2 {[%emt 0:00:03]} Bxe4 {[%emt 0:00:17]} 23. f3 {[%emt 0:00:04]} Bc2 {[%emt 0:01:58]} 24. Rd6 {[%emt 0:00:09]} b5 {[%emt 0:05:46]} (24... Bb3 $15 25. Rc1 a5) 25. Rc1 $11 {[%emt 0:00:16] The position is equal.} Ba4 {[%emt 0:03:05]} 26. Ke1 {[%emt 0:00:55]} bxc4 {[%emt 0:03:02]} 27. Rxc4 {[%emt 0:00:16]} Bb3 {[%emt 0:03:58]} 28. Rxc5 {[%emt 0:00:25]} a5 {[%emt 0:00:07]} 29. Bd2 {[%emt 0:07:04]} a4 {[%emt 0:00:06]} 30. Bc3 {[%emt 0:00:04]} Rd8 {[%emt 0:00:36]} 31. Rcc6 {[%emt 0:00:29]} Rxd6 {[%emt 0:00:26] Weighted Error Value: White=0.09 (flawless) /Black=0.06 (flawless)} 1/2-1/2